[Event "Titled Tuesday Blitz December 7 2021"]
[White "Holt, Conrad"]
[Black "Koellner, Ruben Gideon"]
[WhiteFideId "2034387"]
[BlackFideId "12993093"]
[WhiteElo "2586"]
[BlackElo "2553"]
[Result "1-0"]
[Round "02"]
[TimeControl "180+1"]
[Date "2021.12.07"]
[WhiteClock "0:00:34"]
[BlackClock "0:00:05"]

1. d4 {[%clk 0:03:00]}  d6 {[%clk 0:02:58]} 2. Nf3 {[%clk 0:03:00]}  Nf6 {[%clk 0:02:57]} 3. c4 {[%clk 0:03:01]}  g6 {[%clk 0:02:56]} 4. Nc3 {[%clk 0:03:01]}  Bf5 {[%clk 0:02:56]} 5. Nd2 {[%clk 0:02:57]}  Bd7 {[%clk 0:02:53]} 6. e3 {[%clk 0:02:55]}  Bg7 {[%clk 0:02:52]} 7. Bd3 {[%clk 0:02:56]}  O-O {[%clk 0:02:52]} 8. O-O {[%clk 0:02:55]}  e5 {[%clk 0:02:45]} 9. a3 {[%clk 0:02:53]}  exd4 {[%clk 0:02:45]} 10. exd4 {[%clk 0:02:53]}  Nc6 {[%clk 0:02:45]} 11. Nb3 {[%clk 0:02:47]}  Re8 {[%clk 0:02:39]} 12. Bg5 {[%clk 0:02:39]}  h6 {[%clk 0:02:38]} 13. Bh4 {[%clk 0:02:39]}  g5 {[%clk 0:02:33]} 14. Bg3 {[%clk 0:02:38]}  Bg4 {[%clk 0:02:33]} 15. Qd2 {[%clk 0:02:28]}  Nh5 {[%clk 0:02:33]} 16. Be2 {[%clk 0:02:16]}  Qd7 {[%clk 0:02:20]} 17. Bxg4 {[%clk 0:02:00]}  Qxg4 {[%clk 0:02:21]} 18. h3 {[%clk 0:01:59]}  Qf5 {[%clk 0:02:06]} 19. Nd5 {[%clk 0:01:52]}  Rac8 {[%clk 0:01:59]} 20. Bh2 {[%clk 0:01:47]}  Nf6 {[%clk 0:01:56]} 21. Ne3 {[%clk 0:01:39]}  Qg6 {[%clk 0:01:56]} 22. d5 {[%clk 0:01:34]}  Ne5 {[%clk 0:01:55]} 23. Nd4 {[%clk 0:01:34]}  Ne4 {[%clk 0:01:45]} 24. Qd1 {[%clk 0:01:28]}  Nc5 {[%clk 0:01:40]} 25. Nef5 {[%clk 0:01:23]}  Nxc4 {[%clk 0:01:29]} 26. b4 {[%clk 0:01:12]}  Nd7 {[%clk 0:01:14]} 27. Rc1 {[%clk 0:01:05]}  Nce5 {[%clk 0:01:00]} 28. f4 {[%clk 0:01:01]}  gxf4 {[%clk 0:00:46]} 29. Bxf4 {[%clk 0:00:59]}  Nb6 {[%clk 0:00:34]} 30. Rc3 {[%clk 0:00:52]}  Nxd5 {[%clk 0:00:32]} 31. Rg3 {[%clk 0:00:52]}  Nxf4 {[%clk 0:00:26]} 32. Rxf4 {[%clk 0:00:50]}  Qxg3 {[%clk 0:00:22]} 33. Nxg3 {[%clk 0:00:49]}  Ng6 {[%clk 0:00:23]} 34. Re4 {[%clk 0:00:47]}  c5 {[%clk 0:00:12]} 35. Rxe8+ {[%clk 0:00:45]}  Rxe8 {[%clk 0:00:12]} 36. Ndf5 {[%clk 0:00:45]}  Bf8 {[%clk 0:00:12]} 37. Nxd6 {[%clk 0:00:42]}  Re5 {[%clk 0:00:09]} 38. bxc5 {[%clk 0:00:40]}  Rxc5 {[%clk 0:00:10]} 39. Nge4 {[%clk 0:00:38]}  Ra5 {[%clk 0:00:09]} 40. Qb3 {[%clk 0:00:36]}  b6 {[%clk 0:00:08]} 41. Qxf7+ {[%clk 0:00:35]}  Kh8 {[%clk 0:00:08]} 42. Nf6 {[%clk 0:00:35]}  Bxd6 {[%clk 0:00:05]} 43. Qh7# {[%clk 0:00:34]} 1-0


[Site "https://www.chess.com"]

[Event "Titled Tuesday Blitz December 7 2021"]
[White "Kalajzic, Ivan"]
[Black "Shahade, Gregory"]
[WhiteFideId "14506378"]
[BlackFideId "2009064"]
[WhiteElo "2163"]
[BlackElo "2677"]
[Result "0-1"]
[Round "02"]
[TimeControl "180+1"]
[Date "2021.12.07"]
[WhiteClock "0:01:03"]
[BlackClock "0:00:24"]

1. b3 {[%clk 0:02:45]}  d5 {[%clk 0:02:54]} 2. Bb2 {[%clk 0:02:45]}  Bg4 {[%clk 0:02:54]} 3. f3 {[%clk 0:02:45]}  Bh5 {[%clk 0:02:54]} 4. e4 {[%clk 0:02:45]}  dxe4 {[%clk 0:02:54]} 5. Qe2 {[%clk 0:02:45]}  c6 {[%clk 0:02:55]} 6. Nc3 {[%clk 0:02:45]}  Nf6 {[%clk 0:02:52]} 7. O-O-O {[%clk 0:02:43]}  e6 {[%clk 0:02:51]} 8. Nxe4 {[%clk 0:02:40]}  Be7 {[%clk 0:02:51]} 9. g4 {[%clk 0:02:39]}  Bg6 {[%clk 0:02:49]} 10. h3 {[%clk 0:02:35]}  Nbd7 {[%clk 0:02:48]} 11. Bg2 {[%clk 0:02:35]}  Qa5 {[%clk 0:02:48]} 12. Kb1 {[%clk 0:02:32]}  O-O-O {[%clk 0:02:47]} 13. f4 {[%clk 0:02:24]}  Nxe4 {[%clk 0:02:36]} 14. Bxe4 {[%clk 0:02:24]}  Bxe4 {[%clk 0:02:36]} 15. Qxe4 {[%clk 0:02:24]}  Bf6 {[%clk 0:02:36]} 16. d4 {[%clk 0:02:21]}  Nb6 {[%clk 0:02:15]} 17. Nf3 {[%clk 0:02:18]}  Qd5 {[%clk 0:02:06]} 18. Qe2 {[%clk 0:02:14]}  h5 {[%clk 0:02:06]} 19. c4 {[%clk 0:02:09]}  Qa5 {[%clk 0:02:04]} 20. g5 {[%clk 0:02:05]}  Be7 {[%clk 0:02:04]} 21. Ne5 {[%clk 0:02:03]}  Rdf8 {[%clk 0:02:03]} 22. g6 {[%clk 0:02:00]}  f6 {[%clk 0:01:56]} 23. Nf7 {[%clk 0:01:59]}  Qf5+ {[%clk 0:01:56]} 24. Ka1 {[%clk 0:01:56]}  Rhg8 {[%clk 0:01:55]} 25. Rhe1 {[%clk 0:01:49]}  Qxg6 {[%clk 0:01:43]} 26. Qxe6+ {[%clk 0:01:48]}  Nd7 {[%clk 0:01:23]} 27. Qxe7 {[%clk 0:01:45]}  Qxf7 {[%clk 0:01:16]} 28. d5 {[%clk 0:01:39]}  cxd5 {[%clk 0:00:58]} 29. Rxd5 {[%clk 0:01:36]}  Qxe7 {[%clk 0:00:30]} 30. Rxe7 {[%clk 0:01:35]}  Nb8 {[%clk 0:00:30]} 31. Rc5+ {[%clk 0:01:23]}  Nc6 {[%clk 0:00:30]} 32. Ba3 {[%clk 0:01:15]}  Re8 {[%clk 0:00:27]} 33. Rd5 {[%clk 0:01:11]}  Nxe7 {[%clk 0:00:25]} 34. Bxe7 {[%clk 0:01:12]}  Rxe7 {[%clk 0:00:25]} 35. Rxh5 {[%clk 0:01:11]}  g5 {[%clk 0:00:25]} 36. f5 {[%clk 0:01:09]}  Re5 {[%clk 0:00:25]} 37. Kb2 {[%clk 0:01:07]}  Rxf5 {[%clk 0:00:25]} 38. Kc3 {[%clk 0:01:07]}  Rf3+ {[%clk 0:00:26]} 39. Kb4 {[%clk 0:01:08]}  Rf4 {[%clk 0:00:26]} 40. Rh6 {[%clk 0:01:06]}  f5 {[%clk 0:00:25]} 41. Kc5 {[%clk 0:01:05]}  g4 {[%clk 0:00:25]} 42. h4 {[%clk 0:01:04]}  g3 {[%clk 0:00:25]} 43. Kd6 {[%clk 0:01:03]}  g2 {[%clk 0:00:24]} 0-1


[Site "https://www.chess.com"]

[Event "Titled Tuesday Blitz December 7 2021"]
[White "Kamsky, Gata"]
[Black "Reprintsev, Alexander"]
[WhiteFideId "2000024"]
[BlackFideId "14100541"]
[WhiteElo "2645"]
[BlackElo "2126"]
[Result "1-0"]
[Round "02"]
[TimeControl "180+1"]
[Date "2021.12.07"]
[WhiteClock "0:00:14"]
[BlackClock "0:00:29"]

1. e4 {[%clk 0:03:00]}  d5 {[%clk 0:02:59]} 2. exd5 {[%clk 0:03:00]}  Qxd5 {[%clk 0:02:59]} 3. Nc3 {[%clk 0:03:00]}  Qa5 {[%clk 0:02:59]} 4. Bc4 {[%clk 0:02:57]}  Nf6 {[%clk 0:02:59]} 5. Nge2 {[%clk 0:02:54]}  e5 {[%clk 0:02:54]} 6. O-O {[%clk 0:02:52]}  Nc6 {[%clk 0:02:54]} 7. d4 {[%clk 0:02:46]}  Bg4 {[%clk 0:02:50]} 8. dxe5 {[%clk 0:02:25]}  Nxe5 {[%clk 0:02:49]} 9. Bb5+ {[%clk 0:02:20]}  c6 {[%clk 0:02:48]} 10. Qd4 {[%clk 0:02:18]}  Nfd7 {[%clk 0:02:34]} 11. Bd3 {[%clk 0:01:27]}  Bc5 {[%clk 0:02:28]} 12. Qf4 {[%clk 0:01:26]}  Nxd3 {[%clk 0:02:13]} 13. Qxg4 {[%clk 0:01:23]}  Nxc1 {[%clk 0:02:12]} 14. Qe4+ {[%clk 0:01:21]}  Kf8 {[%clk 0:02:03]} 15. Raxc1 {[%clk 0:01:20]}  Re8 {[%clk 0:02:03]} 16. Qf4 {[%clk 0:01:18]}  Nf6 {[%clk 0:01:34]} 17. Rcd1 {[%clk 0:01:14]}  Qb4 {[%clk 0:01:29]} 18. b3 {[%clk 0:00:58]}  Qxf4 {[%clk 0:01:27]} 19. Nxf4 {[%clk 0:00:57]}  Bb4 {[%clk 0:01:16]} 20. Na4 {[%clk 0:00:49]}  b5 {[%clk 0:01:09]} 21. Nd3 {[%clk 0:00:48]}  Ba3 {[%clk 0:00:58]} 22. Nac5 {[%clk 0:00:47]}  g6 {[%clk 0:00:49]} 23. Rfe1 {[%clk 0:00:40]}  Kg7 {[%clk 0:00:48]} 24. c4 {[%clk 0:00:39]}  bxc4 {[%clk 0:00:47]} 25. bxc4 {[%clk 0:00:39]}  Rxe1+ {[%clk 0:00:44]} 26. Rxe1 {[%clk 0:00:38]}  Rd8 {[%clk 0:00:44]} 27. h3 {[%clk 0:00:27]}  Rd4 {[%clk 0:00:44]} 28. Re3 {[%clk 0:00:21]}  Bxc5 {[%clk 0:00:42]} 29. Nxc5 {[%clk 0:00:21]}  Rxc4 {[%clk 0:00:43]} 30. Nb3 {[%clk 0:00:17]}  Nd5 {[%clk 0:00:43]} 31. Re2 {[%clk 0:00:16]}  Nf4 {[%clk 0:00:42]} 32. Rd2 {[%clk 0:00:16]}  c5 {[%clk 0:00:34]} 33. h4 {[%clk 0:00:15]}  Ne6 {[%clk 0:00:29]} 34. g3 {[%clk 0:00:15]}  Rc1+ {[%clk 0:00:29]} 35. Nxc1 {[%clk 0:00:14]} 1-0


[Site "https://www.chess.com"]

[Event "Titled Tuesday Blitz December 7 2021"]
[White "Khanin, Semen"]
[Black "Yang, Kaiqi"]
[WhiteFideId "4111990"]
[BlackFideId "8604398"]
[WhiteElo "2442"]
[BlackElo "2373"]
[Result "0-1"]
[Round "02"]
[TimeControl "180+1"]
[Date "2021.12.07"]
[WhiteClock "0:00:07"]
[BlackClock "0:00:20"]

1. e4 {[%clk 0:03:00]}  c5 {[%clk 0:03:00]} 2. Nf3 {[%clk 0:03:00]}  Nf6 {[%clk 0:03:00]} 3. Nc3 {[%clk 0:02:55]}  d5 {[%clk 0:02:59]} 4. exd5 {[%clk 0:02:55]}  Nxd5 {[%clk 0:02:59]} 5. Bb5+ {[%clk 0:02:56]}  Bd7 {[%clk 0:02:58]} 6. Ne5 {[%clk 0:02:54]}  Nf6 {[%clk 0:02:55]} 7. a4 {[%clk 0:02:52]}  e6 {[%clk 0:02:48]} 8. Qf3 {[%clk 0:02:51]}  Qc8 {[%clk 0:02:46]} 9. d3 {[%clk 0:02:50]}  Be7 {[%clk 0:02:42]} 10. g4 {[%clk 0:02:48]}  a6 {[%clk 0:02:26]} 11. Bc4 {[%clk 0:02:28]}  Nc6 {[%clk 0:02:15]} 12. Nxd7 {[%clk 0:01:58]}  Nxd7 {[%clk 0:02:02]} 13. Be3 {[%clk 0:01:49]}  Nde5 {[%clk 0:01:57]} 14. Qe4 {[%clk 0:01:49]}  Nxc4 {[%clk 0:01:53]} 15. Qxc4 {[%clk 0:01:47]}  O-O {[%clk 0:01:51]} 16. g5 {[%clk 0:01:44]}  Rd8 {[%clk 0:01:45]} 17. Ne4 {[%clk 0:01:19]}  b5 {[%clk 0:01:23]} 18. Qa2 {[%clk 0:01:10]}  c4 {[%clk 0:01:18]} 19. axb5 {[%clk 0:01:08]}  Nb4 {[%clk 0:01:16]} 20. Qa4 {[%clk 0:00:50]}  cxd3 {[%clk 0:01:10]} 21. cxd3 {[%clk 0:00:41]}  Nc2+ {[%clk 0:01:07]} 22. Ke2 {[%clk 0:00:41]}  Nxa1 {[%clk 0:01:06]} 23. Rxa1 {[%clk 0:00:19]}  axb5 {[%clk 0:01:06]} 24. Qxa8 {[%clk 0:00:19]}  Qxa8 {[%clk 0:01:06]} 25. Rxa8 {[%clk 0:00:19]}  Rxa8 {[%clk 0:01:07]} 26. Kd2 {[%clk 0:00:18]}  Rc8 {[%clk 0:01:03]} 27. Bf4 {[%clk 0:00:17]}  f6 {[%clk 0:01:00]} 28. h4 {[%clk 0:00:17]}  e5 {[%clk 0:00:58]} 29. Be3 {[%clk 0:00:17]}  Kf7 {[%clk 0:00:58]} 30. Nc3 {[%clk 0:00:16]}  Bb4 {[%clk 0:00:56]} 31. Kc2 {[%clk 0:00:16]}  Ke6 {[%clk 0:00:51]} 32. Kb3 {[%clk 0:00:15]}  Bxc3 {[%clk 0:00:51]} 33. bxc3 {[%clk 0:00:16]}  Kd5 {[%clk 0:00:42]} 34. Kb4 {[%clk 0:00:17]}  Rb8 {[%clk 0:00:41]} 35. gxf6 {[%clk 0:00:11]}  gxf6 {[%clk 0:00:41]} 36. h5 {[%clk 0:00:12]}  f5 {[%clk 0:00:41]} 37. f3 {[%clk 0:00:12]}  Kc6 {[%clk 0:00:38]} 38. Bg5 {[%clk 0:00:11]}  Rg8 {[%clk 0:00:28]} 39. Bf6 {[%clk 0:00:11]}  Rg3 {[%clk 0:00:26]} 40. Bxe5 {[%clk 0:00:10]}  Rxf3 {[%clk 0:00:26]} 41. d4 {[%clk 0:00:10]}  Rh3 {[%clk 0:00:21]} 42. c4 {[%clk 0:00:08]}  bxc4 {[%clk 0:00:21]} 43. Kxc4 {[%clk 0:00:08]}  Rxh5 {[%clk 0:00:20]} 44. d5+ {[%clk 0:00:09]}  Kd7 {[%clk 0:00:20]} 45. Kd4 {[%clk 0:00:08]}  Rh4+ {[%clk 0:00:20]} 46. Kc5 {[%clk 0:00:08]}  Re4 {[%clk 0:00:20]} 47. Bb8 {[%clk 0:00:07]}  h5 {[%clk 0:00:20]} 48. d6 {[%clk 0:00:07]}  h4 {[%clk 0:00:20]} 49. Kd5 {[%clk 0:00:07]}  h3 {[%clk 0:00:20]} 0-1


[Site "https://www.chess.com"]

[Event "Titled Tuesday Blitz December 7 2021"]
[White "King, Alexander"]
[Black "Ivanchuk, Vasyl"]
[WhiteFideId "2063620"]
[BlackFideId "14100010"]
[WhiteElo "2306"]
[BlackElo "2710"]
[Result "0-1"]
[Round "02"]
[TimeControl "180+1"]
[Date "2021.12.07"]
[WhiteClock "0:00:02"]
[BlackClock "0:00:56"]

1. d4 {[%clk 0:03:00]}  Nf6 {[%clk 0:02:59]} 2. c4 {[%clk 0:03:00]}  e6 {[%clk 0:02:59]} 3. Nc3 {[%clk 0:03:00]}  Bb4 {[%clk 0:02:59]} 4. e3 {[%clk 0:03:01]}  c5 {[%clk 0:02:58]} 5. Bd3 {[%clk 0:03:01]}  Nc6 {[%clk 0:02:56]} 6. Nf3 {[%clk 0:03:01]}  Bxc3+ {[%clk 0:02:56]} 7. bxc3 {[%clk 0:03:02]}  d6 {[%clk 0:02:56]} 8. O-O {[%clk 0:03:01]}  e5 {[%clk 0:02:55]} 9. Nd2 {[%clk 0:03:01]}  O-O {[%clk 0:02:53]} 10. Re1 {[%clk 0:03:01]}  h6 {[%clk 0:02:51]} 11. h3 {[%clk 0:03:01]}  Re8 {[%clk 0:02:43]} 12. d5 {[%clk 0:03:01]}  e4 {[%clk 0:02:34]} 13. dxc6 {[%clk 0:02:59]}  exd3 {[%clk 0:02:34]} 14. cxb7 {[%clk 0:02:49]}  Bxb7 {[%clk 0:02:34]} 15. Nf1 {[%clk 0:02:50]}  Nd7 {[%clk 0:02:25]} 16. Qxd3 {[%clk 0:02:46]}  Ne5 {[%clk 0:02:22]} 17. Qe2 {[%clk 0:02:46]}  Ba6 {[%clk 0:02:16]} 18. Nd2 {[%clk 0:02:35]}  Qa5 {[%clk 0:02:06]} 19. Bb2 {[%clk 0:02:01]}  Rab8 {[%clk 0:01:59]} 20. Nb3 {[%clk 0:01:36]}  Qa4 {[%clk 0:01:57]} 21. Qd1 {[%clk 0:01:05]}  Bxc4 {[%clk 0:01:29]} 22. Qxd6 {[%clk 0:01:00]}  Nd3 {[%clk 0:01:29]} 23. Reb1 {[%clk 0:00:13]}  Red8 {[%clk 0:01:28]} 24. Qg3 {[%clk 0:00:01]}  Nxb2 {[%clk 0:01:24]} 25. Rxb2 {[%clk 0:00:02]}  Rxb3 {[%clk 0:01:16]} 26. Rxb3 {[%clk 0:00:02]}  Bxb3 {[%clk 0:01:16]} 27. Qc7 {[%clk 0:00:03]}  Re8 {[%clk 0:00:57]} 28. Qxc5 {[%clk 0:00:02]}  Be6 {[%clk 0:00:56]} 0-1


[Site "https://www.chess.com"]

[Event "Titled Tuesday Blitz December 7 2021"]
[White "Kozionov, Kirill"]
[Black "Manukian, Artak"]
[WhiteFideId "24101729"]
[BlackFideId "13301373"]
[WhiteElo "2426"]
[BlackElo "2393"]
[Result "1/2-1/2"]
[Round "02"]
[TimeControl "180+1"]
[Date "2021.12.07"]
[WhiteClock "0:00:04"]
[BlackClock "0:01:10"]

1. b3 {[%clk 0:03:00]}  Nf6 {[%clk 0:02:58]} 2. Bb2 {[%clk 0:03:00]}  g6 {[%clk 0:02:58]} 3. Bxf6 {[%clk 0:02:56]}  exf6 {[%clk 0:02:56]} 4. c4 {[%clk 0:02:57]}  Bg7 {[%clk 0:02:56]} 5. Nc3 {[%clk 0:02:57]}  O-O {[%clk 0:02:56]} 6. g3 {[%clk 0:02:57]}  f5 {[%clk 0:02:54]} 7. Rc1 {[%clk 0:02:56]}  h5 {[%clk 0:02:54]} 8. h4 {[%clk 0:02:56]}  c6 {[%clk 0:02:49]} 9. Bg2 {[%clk 0:02:55]}  d6 {[%clk 0:02:47]} 10. Nh3 {[%clk 0:02:54]}  Nd7 {[%clk 0:02:47]} 11. d4 {[%clk 0:02:51]}  Nf6 {[%clk 0:02:39]} 12. Nf4 {[%clk 0:02:48]}  Re8 {[%clk 0:02:38]} 13. e3 {[%clk 0:02:46]}  Bh6 {[%clk 0:02:37]} 14. O-O {[%clk 0:02:45]}  Ne4 {[%clk 0:02:32]} 15. b4 {[%clk 0:02:44]}  Bxf4 {[%clk 0:02:23]} 16. exf4 {[%clk 0:02:44]}  Nxc3 {[%clk 0:02:23]} 17. Rxc3 {[%clk 0:02:44]}  Bd7 {[%clk 0:02:22]} 18. a4 {[%clk 0:02:38]}  Qb6 {[%clk 0:02:06]} 19. b5 {[%clk 0:02:11]}  Qa5 {[%clk 0:01:56]} 20. Qb3 {[%clk 0:02:07]}  Re2 {[%clk 0:01:52]} 21. Re3 {[%clk 0:01:55]}  Re8 {[%clk 0:01:51]} 22. Rxe8+ {[%clk 0:01:30]}  Rxe8 {[%clk 0:01:52]} 23. Bf3 {[%clk 0:01:22]}  Re1 {[%clk 0:01:48]} 24. bxc6 {[%clk 0:01:10]}  Rxf1+ {[%clk 0:01:47]} 25. Kxf1 {[%clk 0:01:10]}  Bxc6 {[%clk 0:01:47]} 26. Bxc6 {[%clk 0:01:00]}  bxc6 {[%clk 0:01:48]} 27. Qb8+ {[%clk 0:00:54]}  Kg7 {[%clk 0:01:46]} 28. Qxd6 {[%clk 0:00:53]}  Qxa4 {[%clk 0:01:45]} 29. Qe5+ {[%clk 0:00:39]}  Kg8 {[%clk 0:01:44]} 30. Qe8+ {[%clk 0:00:36]}  Kg7 {[%clk 0:01:43]} 31. Qe5+ {[%clk 0:00:36]}  Kg8 {[%clk 0:01:43]} 32. Qc5 {[%clk 0:00:34]}  a5 {[%clk 0:01:40]} 33. d5 {[%clk 0:00:31]}  cxd5 {[%clk 0:01:39]} 34. cxd5 {[%clk 0:00:28]}  Qb4 {[%clk 0:01:20]} 35. Qc6 {[%clk 0:00:03]}  Qb1+ {[%clk 0:01:15]} 36. Kg2 {[%clk 0:00:03]}  Qe4+ {[%clk 0:01:15]} 37. Kg1 {[%clk 0:00:03]}  Qe1+ {[%clk 0:01:15]} 38. Kg2 {[%clk 0:00:04]}  Qe4+ {[%clk 0:01:15]} 39. Kf1 {[%clk 0:00:04]}  Qb1+ {[%clk 0:01:14]} 40. Ke2 {[%clk 0:00:04]}  Qe4+ {[%clk 0:01:13]} 41. Kd2 {[%clk 0:00:04]}  Qd4+ {[%clk 0:01:13]} 42. Ke1 {[%clk 0:00:03]}  Qe4+ {[%clk 0:01:10]} 43. Kd2 {[%clk 0:00:03]}  Qd4+ {[%clk 0:01:10]} 44. Ke2 {[%clk 0:00:03]}  Qe4+ {[%clk 0:01:10]} 45. Kf1 {[%clk 0:00:04]}  Qh1+ {[%clk 0:01:09]} 46. Ke2 {[%clk 0:00:04]}  Qe4+ {[%clk 0:01:10]} 1/2-1/2


[Site "https://www.chess.com"]

[Event "Titled Tuesday Blitz December 7 2021"]
[White "Madaminov, Mukhiddin"]
[Black "Karas, Marek"]
[WhiteFideId "14210703"]
[BlackFideId "14928558"]
[WhiteElo "1916"]
[BlackElo "2270"]
[Result "1/2-1/2"]
[Round "02"]
[TimeControl "180+1"]
[Date "2021.12.07"]
[WhiteClock "0:00:11"]
[BlackClock "0:00:09"]

1. d4 {[%clk 0:03:00]}  Nf6 {[%clk 0:02:58]} 2. Nc3 {[%clk 0:03:01]}  e6 {[%clk 0:02:58]} 3. e4 {[%clk 0:03:01]}  d5 {[%clk 0:02:58]} 4. Bg5 {[%clk 0:02:59]}  Be7 {[%clk 0:02:58]} 5. e5 {[%clk 0:02:55]}  Nfd7 {[%clk 0:02:58]} 6. Bxe7 {[%clk 0:02:56]}  Qxe7 {[%clk 0:02:58]} 7. f4 {[%clk 0:02:57]}  O-O {[%clk 0:02:58]} 8. Nf3 {[%clk 0:02:56]}  c5 {[%clk 0:02:59]} 9. Nb5 {[%clk 0:02:56]}  Nc6 {[%clk 0:02:58]} 10. c3 {[%clk 0:02:54]}  f6 {[%clk 0:02:58]} 11. Bd3 {[%clk 0:02:49]}  a6 {[%clk 0:02:56]} 12. Nd6 {[%clk 0:02:40]}  cxd4 {[%clk 0:02:55]} 13. cxd4 {[%clk 0:02:38]}  fxe5 {[%clk 0:02:51]} 14. fxe5 {[%clk 0:02:39]}  Rxf3 {[%clk 0:02:33]} 15. Qxf3 {[%clk 0:02:32]}  Nxd4 {[%clk 0:02:27]} 16. Qh3 {[%clk 0:02:05]}  h6 {[%clk 0:02:15]} 17. Qh5 {[%clk 0:01:54]}  Nc6 {[%clk 0:02:02]} 18. Qg6 {[%clk 0:01:35]}  Nf8 {[%clk 0:02:01]} 19. Qg3 {[%clk 0:01:33]}  Qg5 {[%clk 0:01:56]} 20. Qxg5 {[%clk 0:01:18]}  hxg5 {[%clk 0:01:55]} 21. Kd2 {[%clk 0:01:19]}  Nxe5 {[%clk 0:01:53]} 22. Rac1 {[%clk 0:01:19]}  Nc6 {[%clk 0:01:46]} 23. h4 {[%clk 0:01:18]}  g4 {[%clk 0:01:40]} 24. Be2 {[%clk 0:00:46]}  e5 {[%clk 0:01:36]} 25. Nxc8 {[%clk 0:00:46]}  Rxc8 {[%clk 0:01:36]} 26. Bxg4 {[%clk 0:00:47]}  Rc7 {[%clk 0:01:34]} 27. Rhe1 {[%clk 0:00:44]}  e4 {[%clk 0:01:20]} 28. Rc5 {[%clk 0:00:44]}  Nd7 {[%clk 0:00:51]} 29. Rxd5 {[%clk 0:00:37]}  Nf6 {[%clk 0:00:51]} 30. Be6+ {[%clk 0:00:37]}  Kh7 {[%clk 0:00:48]} 31. Rc5 {[%clk 0:00:31]}  Re7 {[%clk 0:00:44]} 32. Bd5 {[%clk 0:00:22]}  Re5 {[%clk 0:00:38]} 33. Bxc6 {[%clk 0:00:18]}  Rxc5 {[%clk 0:00:38]} 34. Bxb7 {[%clk 0:00:19]}  Rb5 {[%clk 0:00:36]} 35. Bxe4+ {[%clk 0:00:15]}  Nxe4+ {[%clk 0:00:36]} 36. Rxe4 {[%clk 0:00:16]}  Rxb2+ {[%clk 0:00:37]} 37. Ke3 {[%clk 0:00:16]}  Rxa2 {[%clk 0:00:35]} 38. g3 {[%clk 0:00:14]}  a5 {[%clk 0:00:34]} 39. Re5 {[%clk 0:00:14]}  a4 {[%clk 0:00:34]} 40. Ra5 {[%clk 0:00:14]}  a3 {[%clk 0:00:34]} 41. Kf4 {[%clk 0:00:15]}  Ra1 {[%clk 0:00:33]} 42. g4 {[%clk 0:00:12]}  a2 {[%clk 0:00:30]} 43. Kg5 {[%clk 0:00:12]}  Rb1 {[%clk 0:00:22]} 44. Rxa2 {[%clk 0:00:11]}  Rb5+ {[%clk 0:00:22]} 45. Kf4 {[%clk 0:00:11]}  Rb4+ {[%clk 0:00:22]} 46. Kg3 {[%clk 0:00:11]}  Rb3+ {[%clk 0:00:23]} 47. Kh2 {[%clk 0:00:12]}  Rc3 {[%clk 0:00:20]} 48. Rf2 {[%clk 0:00:12]}  Rb3 {[%clk 0:00:20]} 49. Kg2 {[%clk 0:00:12]}  Rc3 {[%clk 0:00:20]} 50. Rf3 {[%clk 0:00:12]}  Rc2+ {[%clk 0:00:20]} 51. Kg3 {[%clk 0:00:13]}  Rc1 {[%clk 0:00:20]} 52. Re3 {[%clk 0:00:13]}  Rc4 {[%clk 0:00:20]} 53. Kf3 {[%clk 0:00:13]}  Ra4 {[%clk 0:00:20]} 54. Re4 {[%clk 0:00:13]}  Ra3+ {[%clk 0:00:20]} 55. Kf4 {[%clk 0:00:14]}  Ra1 {[%clk 0:00:21]} 56. h5 {[%clk 0:00:14]}  Ra5 {[%clk 0:00:20]} 57. Re5 {[%clk 0:00:14]}  Ra4+ {[%clk 0:00:20]} 58. Kf5 {[%clk 0:00:14]}  Ra1 {[%clk 0:00:20]} 59. Kg5 {[%clk 0:00:12]}  Ra6 {[%clk 0:00:19]} 60. Re7 {[%clk 0:00:12]}  Ra5+ {[%clk 0:00:18]} 61. Kh4 {[%clk 0:00:13]}  Ra4 {[%clk 0:00:18]} 62. Rf7 {[%clk 0:00:12]}  Ra1 {[%clk 0:00:17]} 63. Kg5 {[%clk 0:00:12]}  Ra5+ {[%clk 0:00:17]} 64. Rf5 {[%clk 0:00:12]}  Ra1 {[%clk 0:00:17]} 65. Re5 {[%clk 0:00:12]}  Rb1 {[%clk 0:00:16]} 66. Kf5 {[%clk 0:00:12]}  Rf1+ {[%clk 0:00:16]} 67. Ke6 {[%clk 0:00:13]}  Rh1 {[%clk 0:00:16]} 68. Kf7 {[%clk 0:00:11]}  Rf1+ {[%clk 0:00:16]} 69. Rf5 {[%clk 0:00:12]}  Rg1 {[%clk 0:00:09]} 70. g5 {[%clk 0:00:10]}  Ra1 {[%clk 0:00:09]} 71. Re5 {[%clk 0:00:08]}  Rf1+ {[%clk 0:00:06]} 72. Ke6 {[%clk 0:00:05]}  Rh1 {[%clk 0:00:06]} 73. Kf7 {[%clk 0:00:03]}  Rf1+ {[%clk 0:00:03]} 74. Ke6 {[%clk 0:00:03]}  Rh1 {[%clk 0:00:04]} 75. g6+ {[%clk 0:00:02]}  Kh6 {[%clk 0:00:04]} 76. Kf7 {[%clk 0:00:03]}  Rf1+ {[%clk 0:00:04]} 77. Kg8 {[%clk 0:00:03]}  Ra1 {[%clk 0:00:05]} 78. Re8 {[%clk 0:00:02]}  Ra7 {[%clk 0:00:03]} 79. Re5 {[%clk 0:00:01]}  Rb7 {[%clk 0:00:03]} 80. Kf8 {[%clk 0:00:01]}  Ra7 {[%clk 0:00:03]} 81. Re7 {[%clk 0:00:01]}  Ra8+ {[%clk 0:00:03]} 82. Kf7 {[%clk 0:00:02]}  Ra5 {[%clk 0:00:03]} 83. Rd7 {[%clk 0:00:02]}  Rf5+ {[%clk 0:00:03]} 84. Ke8 {[%clk 0:00:02]}  Rxh5 {[%clk 0:00:02]} 85. Rf7 {[%clk 0:00:02]}  Re5+ {[%clk 0:00:02]} 86. Kf8 {[%clk 0:00:03]}  Kxg6 {[%clk 0:00:02]} 87. Rxg7+ {[%clk 0:00:03]}  Kf6 {[%clk 0:00:03]} 88. Rg1 {[%clk 0:00:02]}  Ke6 {[%clk 0:00:04]} 89. Rf1 {[%clk 0:00:02]}  Kd5 {[%clk 0:00:05]} 90. Kf7 {[%clk 0:00:02]}  Ke4 {[%clk 0:00:05]} 91. Kf6 {[%clk 0:00:03]}  Rb5 {[%clk 0:00:05]} 92. Re1+ {[%clk 0:00:04]}  Kd4 {[%clk 0:00:05]} 93. Ke6 {[%clk 0:00:04]}  Kc4 {[%clk 0:00:05]} 94. Rd1 {[%clk 0:00:05]}  Kb4 {[%clk 0:00:05]} 95. Kd6 {[%clk 0:00:06]}  Ka5 {[%clk 0:00:06]} 96. Kc6 {[%clk 0:00:06]}  Rb6+ {[%clk 0:00:06]} 97. Kc5 {[%clk 0:00:07]}  Rb5+ {[%clk 0:00:07]} 98. Kc4 {[%clk 0:00:07]}  Rb4+ {[%clk 0:00:07]} 99. Kc3 {[%clk 0:00:08]}  Rb5 {[%clk 0:00:07]} 100. Rd8 {[%clk 0:00:08]}  Kb6 {[%clk 0:00:07]} 101. Kc4 {[%clk 0:00:09]}  Rc5+ {[%clk 0:00:07]} 102. Kd4 {[%clk 0:00:09]}  Rc7 {[%clk 0:00:07]} 103. Kd5 {[%clk 0:00:09]}  Kb7 {[%clk 0:00:07]} 104. Kd6 {[%clk 0:00:09]}  Rc6+ {[%clk 0:00:08]} 105. Kd5 {[%clk 0:00:10]}  Rc7 {[%clk 0:00:08]} 106. Rh8 {[%clk 0:00:10]}  Rd7+ {[%clk 0:00:08]} 107. Kc5 {[%clk 0:00:11]}  Rc7+ {[%clk 0:00:09]} 108. Kb5 {[%clk 0:00:11]}  Rg7 {[%clk 0:00:09]} 1/2-1/2


[Site "https://www.chess.com"]